bitfinex/quotes_BTCUSD_20250324
["timestamp","ask_amount","ask_price","bid_price","bid_amount"]
[1742826834778,0.02292815,88063.0,88062.0,0.88482123]
[1742826834971,0.0004121,88070.0,88066.0,0.2271]
[1742826835180,0.02326924,88067.0,88065.0,0.227104]
[1742826835356,0.02326924,88067.0,88066.0,0.227102]
[1742826835893,0.0004121,88070.0,88069.0,0.227094]
[1742826836359,0.0004121,88070.0,88069.0,0.367844]
[1742826837023,0.0004121,88070.0,88069.0,0.75424025]
[1742826837420,0.0004121,88070.0,88069.0,0.5018214]
[1742826837808,0.0004121,88070.0,88069.0,0.7289154]
[1742826838038,0.11466974,88070.0,88069.0,1.0421814]
[1742826838395,0.12838041,88070.0,88069.0,1.0421814]
[1742826838616,0.11466974,88070.0,88069.0,1.04703077]
[1742826839023,0.34176174,88070.0,88069.0,1.04703077]
[1742826839259,0.35311574,88070.0,88069.0,1.04703077]
[1742826839459,0.35311574,88070.0,88069.0,1.0421814]
[1742826839662,0.41514826,88070.0,88069.0,1.04703077]
[1742826839996,0.35311574,88070.0,88069.0,1.04703077]
[1742826840829,0.65311574,88070.0,88069.0,0.90571077]
[1742826841395,0.64176174,88070.0,88069.0,1.04675077]
[1742826841620,0.11466974,88070.0,88069.0,1.04675077]
[1742826841822,0.35311574,88070.0,88069.0,1.04675077]
[1742826842223,0.36907922,88070.0,88069.0,1.04675077]
[1742826842423,0.35311574,88070.0,88069.0,1.04692077]
[1742826842833,0.35311574,88070.0,88069.0,0.90588077]
[1742826843076,0.35311574,88070.0,88069.0,1.04704077]
[1742826843469,0.65311574,88070.0,88069.0,0.54537937]
[1742826843609,1.25159438,88070.0,88069.0,0.54537937]
[1742826843808,0.91579438,88070.0,88069.0,0.54537937]
[1742826844014,0.238519,88043.0,88042.0,0.3605014]
[1742826844193,0.11425764,88043.0,88042.0,0.3605014]
[1742826844398,0.11425764,88043.0,88042.0,0.5019014]
[1742826845263,0.011357,88047.0,88042.0,0.5019014]
[1742826845493,0.01176885,88047.0,88042.0,0.5019014]
[1742826845825,0.02496906,88047.0,88042.0,0.5019014]
[1742826846059,0.01361206,88047.0,88046.0,0.23851]
[1742826846218,0.01361206,88047.0,88046.0,0.31829385]
[1742826847275,0.03582438,88047.0,88046.0,0.31829385]
[1742826848439,0.00041185,88047.0,88046.0,0.32955378]
[1742826848650,0.00041185,88047.0,88046.0,0.83189518]
[1742826848843,8.5e-07,88047.0,88046.0,0.80431282]
[1742826849106,1.01777917,88086.0,88070.0,0.011354]
[1742826849326,1.0,88086.0,88084.0,0.227055]
[1742826849538,1.0,88086.0,88085.0,0.14196]
[1742826849790,1.01381139,88086.0,88085.0,0.7295144]
[1742826850344,1.01381139,88086.0,88085.0,0.75540725]
[1742826850547,1.0,88086.0,88085.0,0.75553129]
[1742826851179,0.6394986,88086.0,88085.0,0.50928753]
[1742826851480,0.6394986,88086.0,88085.0,0.92718753]
[1742826852280,0.6394986,88086.0,88085.0,0.78522753]
[1742826852481,0.00034,88100.0,88099.0,0.238367]
[1742826852681,0.00034,88100.0,88099.0,0.81252785]
[1742826852880,0.00034,88100.0,88099.0,1.35288785]
[1742826853868,0.00034,88100.0,88099.0,1.21116785]
[1742826854092,0.00034,88100.0,88099.0,1.35288785]
[1742826854247,0.00034,88100.0,88099.0,1.46714549]
[1742826854451,0.00034,88100.0,88099.0,1.32542549]
[1742826854660,0.00034,88100.0,88099.0,1.11468085]
[1742826854865,0.01169,88100.0,88099.0,1.11468085]
[1742826855110,0.00034,88100.0,88099.0,1.11468085]
[1742826855260,0.00034,88100.0,88099.0,1.10014]
[1742826855461,0.01169,88100.0,88099.0,1.10014]
[1742826855669,0.47822753,88100.0,88099.0,1.10014]
[1742826855873,1.82911864,88100.0,88099.0,0.54036]
[1742826856076,1.05926164,88100.0,88099.0,0.54036]
[1742826856917,0.238402,88086.0,88085.0,0.00012404]
[1742826857112,0.35265964,88086.0,88085.0,0.14204404]
[1742826857314,0.3,88088.0,88085.0,0.14204404]
[1742826857562,0.3,88088.0,88085.0,0.00012404]
[1742826857736,0.01777576,88094.0,88089.0,0.227042]
[1742826857937,0.01777576,88094.0,88093.0,0.227032]
[1742826858142,0.24481076,88094.0,88090.0,0.4179]
[1742826858344,0.011351,88091.0,88090.0,0.4179]
[1742826858547,0.12560864,88091.0,88090.0,0.4179]
[1742826858974,0.42560864,88091.0,88090.0,0.4179]
[1742826859355,0.44678226,88091.0,88090.0,0.4179]
[1742826859722,0.76502526,88091.0,88090.0,0.4179]
[1742826859928,0.44678226,88091.0,88090.0,0.4179]
[1742826860355,0.6795309,88091.0,88090.0,0.4179]
[1742826860991,0.56527326,88091.0,88090.0,0.4179]
[1742826862369,0.59915399,88091.0,88090.0,0.4179]
[1742826862541,0.48066299,88091.0,88090.0,0.4179]
[1742826862717,0.3,88090.0,88085.0,0.00012404]
[1742826862923,0.11425764,88089.0,88087.0,0.14216]
[1742826863119,0.3,88088.0,88085.0,0.00012404]
[1742826863331,0.41425764,88087.0,88086.0,0.14212]
[1742826863533,0.43543126,88087.0,88086.0,0.14212]
[1742826864811,0.3,88086.0,88085.0,0.00012404]
[1742826865012,0.41425764,88086.0,88085.0,0.00012404]
[1742826865511,0.43543126,88086.0,88085.0,0.00012404]
[1742826866078,0.469323,88086.0,88085.0,0.00012404]
[1742826869097,0.913305,88086.0,88085.0,0.00012404]
[1742826869275,0.625855,88086.0,88085.0,0.00012404]
[1742826869429,0.469323,88086.0,88085.0,0.00012404]
[1742826869655,0.05506536,88086.0,88085.0,0.65642904]
[1742826869874,0.05506536,88086.0,88085.0,0.64507704]
[1742826870071,0.05506536,88086.0,88085.0,0.41802404]
[1742826870274,0.06641736,88086.0,88085.0,0.41802404]
[1742826870487,0.4426951,88086.0,88085.0,0.41802404]
[1742826870650,0.4426951,88086.0,88085.0,0.56062404]
[1742826870870,0.70880336,88086.0,88085.0,0.56062404]
[1742826871199,0.70880336,88086.0,88085.0,0.56054404]
[1742826871393,0.67383326,88086.0,88085.0,0.56054404]
[1742826872200,0.90003326,88086.0,88085.0,0.56054404]
[1742826872598,1.61905151,88086.0,88085.0,0.00012404]
[1742826872972,1.12349715,88086.0,88085.0,0.00012404]
[1742826873596,1.12349715,88086.0,88069.0,0.0001701]
[1742826873597,0.305,88085.0,88069.0,0.0001701]
[1742826873802,0.3,88069.0,88053.0,0.1424]
[1742826873978,0.3,88069.0,88048.0,0.54032]
[1742826873979,0.3,88066.0,88054.0,0.14256]
[1742826874234,0.3,88064.0,88055.0,0.14252]
[1742826874436,0.238503,88049.0,88048.0,0.54032]
[1742826874643,0.02117362,88049.0,88048.0,0.54032]
[1742826874856,0.43543126,88049.0,88048.0,0.68276]
[1742826875269,0.02117362,88049.0,88048.0,0.68268]
[1742826875475,0.02117362,88049.0,88048.0,0.54032]
[1742826875694,0.227146,88049.0,88048.0,0.68296]
[1742826876105,0.238503,88049.0,88048.0,0.68296]
[1742826876259,0.25216547,88049.0,88048.0,0.68296]
[1742826876876,0.42150756,88049.0,88048.0,0.68316]
[1742826877629,0.42150756,88049.0,88048.0,0.54032]
[1742826877826,0.42150756,88049.0,88048.0,0.68308]
[1742826878251,0.42150756,88049.0,88048.0,0.54032]
[1742826878450,0.42150756,88049.0,88048.0,0.68321]
[1742826882396,0.38759673,88049.0,88048.0,0.68321]
[1742826882656,0.03483609,88049.0,88048.0,0.910358]
[1742826883117,0.03483609,88049.0,88048.0,0.68321]
[1742826883338,0.01366247,88049.0,88048.0,0.68321]
[1742826883811,0.011356,88053.0,88048.0,0.68321]
[1742826884045,0.227146,88049.0,88048.0,0.68321]
[1742826884250,0.238503,88049.0,88048.0,0.68321]
[1742826884452,0.34139764,88052.0,88048.0,0.68321]
[1742826884667,0.11425764,88052.0,88048.0,0.68321]
[1742826884919,0.11425764,88052.0,88049.0,0.14308]
[1742826885174,0.0211985,88051.0,88049.0,0.14308]
[1742826885434,0.11425764,88050.0,88049.0,0.370226]
[1742826885692,0.0211985,88051.0,88050.0,0.227143]
[1742826885936,0.0211985,88051.0,88050.0,0.370143]
[1742826886177,0.0211985,88051.0,88050.0,0.788043]
[1742826886423,0.01354256,88053.0,88050.0,0.56082]
[1742826886664,0.31778053,88078.0,88050.0,0.56082]
[1742826886966,0.11425764,88055.0,88050.0,0.56082]
[1742826887206,0.238498,88051.0,88050.0,0.4179]
[1742826887448,0.238498,88051.0,88050.0,0.5607]
[1742826887894,0.64332102,88051.0,88050.0,0.4179]
[1742826888172,0.64332102,88051.0,88050.0,0.56066]
[1742826888383,0.64332102,88051.0,88050.0,0.4179]
[1742826888569,0.538503,88049.0,88048.0,0.54049]
[1742826888809,0.23853,88039.0,88032.0,0.14268]
[1742826889039,0.35278764,88039.0,88032.0,0.14268]
[1742826889307,0.4584877,88039.0,88032.0,0.14268]
[1742826889570,0.36134273,88039.0,88032.0,0.14268]
[1742826889825,0.36134273,88039.0,88025.0,0.54048]
[1742826890076,0.36134273,88039.0,88035.0,0.14268]
[1742826890771,0.36134273,88039.0,88025.0,0.54048]
[1742826890772,0.38255436,88039.0,88025.0,0.54048]
[1742826890975,0.38255436,88039.0,88035.0,0.14256]
[1742826891381,0.13546927,88039.0,88035.0,0.14256]
[1742826891601,0.36264127,88039.0,88038.0,0.00058195]
[1742826892240,0.13546927,88039.0,88038.0,0.22775595]
[1742826892418,0.3972677,88039.0,88038.0,0.00058195]
[1742826892964,0.3859097,88039.0,88038.0,0.00058195]
[1742826893153,0.3972677,88039.0,88038.0,0.00058195]
[1742826893397,0.1587377,88039.0,88038.0,0.22775595]
[1742826893607,0.1587377,88039.0,88038.0,0.00058195]
[1742826893777,0.3972677,88039.0,88038.0,0.00058195]
[1742826894008,0.04448006,88039.0,88038.0,0.22775595]
[1742826894211,0.04448006,88039.0,88038.0,0.00058195]
[1742826894413,0.28301006,88039.0,88038.0,0.00058195]
[1742826895321,0.28301006,88039.0,88038.0,0.14262195]
[1742826895903,0.04448006,88039.0,88038.0,0.36979595]
[1742826897256,0.04448006,88039.0,88038.0,0.14262195]
[1742826897478,0.27165206,88039.0,88038.0,0.14262195]
[1742826897669,0.04448006,88039.0,88038.0,0.14262195]
[1742826897896,0.04448006,88039.0,88038.0,0.36979595]
[1742826898733,0.04448006,88039.0,88038.0,0.91035595]
[1742826899314,0.02326843,88039.0,88038.0,0.91035595]
[1742826899683,0.02326843,88039.0,88038.0,0.9248968]
[1742826899884,0.01283654,88055.0,88045.0,0.01454085]
[1742826900055,0.01283654,88055.0,88052.0,0.227136]
[1742826900254,0.03096817,88056.0,88053.0,0.368774]
[1742826900455,0.03096817,88056.0,88053.0,0.14164]
[1742826900663,0.03096817,88056.0,88053.0,0.368775]
[1742826901069,0.03096817,88056.0,88055.0,0.22713]
[1742826901271,0.0825,88084.0,88068.0,0.227094]
[1742826901434,0.11425764,88081.0,88069.0,0.68204]
[1742826901633,0.11425764,88081.0,88078.0,0.22707]
[1742826902211,0.02256628,88079.0,88071.0,0.227089]
[1742826902358,0.227071,88078.0,88074.0,0.22708]
[1742826902579,0.1369315,88079.0,88077.0,0.227072]
[1742826902790,0.1369315,88079.0,88070.0,0.14148]
[1742826903200,0.1369315,88079.0,88078.0,0.227071]
[1742826903403,0.1369315,88079.0,88071.0,0.227086]
[1742826903599,0.1369315,88079.0,88075.0,0.227076]
[1742826903974,0.1369315,88079.0,88070.0,0.14148]
[1742826903975,0.227074,88077.0,88070.0,0.14148]
[1742826904156,0.238427,88077.0,88071.0,0.227089]
[1742826904370,0.238429,88076.0,88071.0,0.227089]
[1742826904581,0.011354,88074.0,88070.0,0.14148]
[1742826904777,0.238429,88076.0,88070.0,0.14148]
[1742826904986,0.34132964,88078.0,88073.0,0.227084]
[1742826905196,0.227054,88085.0,88078.0,0.227071]
[1742826905411,0.00034,88086.0,88078.0,0.227071]
[1742826905831,0.227057,88084.0,88078.0,0.227071]
[1742826906105,0.00034,88086.0,88078.0,0.227071]
[1742826906544,0.00010758,88079.0,88078.0,0.89398485]
[1742826908001,0.00010758,88079.0,88078.0,0.94158485]
[1742826908231,0.00034,88086.0,88085.0,0.238405]
[1742826908455,0.00034,88086.0,88085.0,0.25294585]
[1742826909426,0.00034,88086.0,88085.0,0.24159385]
[1742826909628,0.00034,88086.0,88085.0,0.25294585]
[1742826909934,0.005,88094.0,88085.0,0.25294585]
[1742826909935,1e-06,88094.0,88090.0,0.321392]
[1742826910145,0.226933,88132.0,88090.0,0.321392]
[1742826910146,1e-06,88100.0,88099.0,0.25290785]
[1742826910356,1e-06,88100.0,88099.0,0.90743798]
[1742826910709,1e-06,88100.0,88099.0,1.42840932]
[1742826910915,0.011343,88154.0,88099.0,1.42840932]
[1742826910916,1e-06,88117.0,88116.0,0.32896185]
[1742826911116,1e-06,88117.0,88116.0,0.65440948]
[1742826911291,1e-06,88117.0,88116.0,0.62940948]
[1742826911678,1e-06,88117.0,88116.0,0.65390948]
[1742826912097,1e-06,88117.0,88116.0,0.66162797]
[1742826912335,0.00010901,88117.0,88116.0,0.66162797]
[1742826912586,0.00010901,88117.0,88116.0,0.66125297]
[1742826913014,0.00010901,88117.0,88116.0,0.62790947]
[1742826913174,0.00010901,88117.0,88116.0,0.62802947]
[1742826913386,1e-08,88117.0,88116.0,0.62802947]
[1742826913580,1e-08,88117.0,88116.0,0.65302947]
[1742826913787,0.0003402,88158.0,88157.0,0.226867]
[1742826913959,0.0003402,88158.0,88157.0,0.68136]
[1742826913960,0.11459784,88158.0,88157.0,0.68136]
[1742826914161,0.00075378,88158.0,88157.0,0.68136]
[1742826914362,0.02490227,88158.0,88157.0,0.68136]
[1742826914561,0.01355927,88158.0,88157.0,0.68136]
[1742826915445,0.16232878,88158.0,88157.0,0.54024]
[1742826915646,0.16232878,88158.0,88157.0,0.6812]
[1742826915830,0.14952329,88158.0,88157.0,0.6812]
[1742826915957,0.14952329,88158.0,88157.0,0.54024]
[1742826916180,0.011344,88151.0,88150.0,0.14096]
[1742826916386,0.011345,88143.0,88142.0,0.14104]
[1742826916592,0.238264,88137.0,88136.0,0.54012]
[1742826916795,0.53271564,88137.0,88136.0,0.54012]
[1742826917216,0.22696,88122.0,88117.0,0.2268196]
[1742826917475,0.22696,88122.0,88105.0,0.01135]
[1742826917476,0.311348,88119.0,88118.0,0.68124]
[1742826917688,0.42560564,88119.0,88118.0,0.54012]
[1742826918526,0.42560564,88119.0,88118.0,0.54024356]
[1742826919489,0.11425764,88119.0,88118.0,0.54024356]
[1742826919698,0.01776987,88123.0,88122.0,0.226958]
[1742826919893,0.034102,88139.0,88118.0,0.54024356]
[1742826920065,0.02279862,88127.0,88118.0,0.54024356]
[1742826920264,0.11425764,88126.0,88118.0,0.54024356]
[1742826921294,0.2262,88125.0,88118.0,0.54024356]
[1742826921510,0.226963,88120.0,88118.0,0.68124356]
[1742826921696,0.12560564,88119.0,88118.0,0.68124356]
[1742826922057,0.11425764,88119.0,88118.0,0.54024356]
[1742826922955,0.11425764,88119.0,88118.0,0.68108356]
[1742826924286,0.1744038,88119.0,88118.0,0.68108356]
[1742826924685,0.4744038,88119.0,88118.0,0.54024356]
[1742826924889,0.4744038,88119.0,88083.0,0.011352]
[1742826924890,0.4232,88118.0,88098.0,0.1406]
[1742826925158,0.538395,88089.0,88088.0,0.54008]
[1742826925381,0.538405,88085.0,88084.0,0.00010801]
[1742826925586,0.238438,88073.0,88072.0,0.14088]
[1742826925795,0.35269564,88073.0,88072.0,0.14088]
[1742826926402,0.538448,88069.0,88068.0,0.54008]
[1742826926647,0.89194103,88069.0,88068.0,0.54018758]
[1742826926853,1.78384703,88069.0,88068.0,0.00010758]
[1742826927009,1.89810467,88069.0,88068.0,0.00010758]
[1742826927690,1.78384703,88069.0,88068.0,0.00010758]
[1742826929082,1.80162909,88069.0,88068.0,0.00010758]
[1742826929906,0.3,88068.0,88050.0,0.54008]
[1742826930112,0.3,88050.0,88048.0,0.0001697]
[1742826930313,0.84334564,88049.0,88048.0,0.0001697]
[1742826930651,0.41425764,88049.0,88048.0,0.0001697]
[1742826931084,0.11425764,88049.0,88048.0,0.0001697]
[1742826931704,0.11425764,88049.0,88048.0,0.00956]
[1742826931885,0.41425764,88049.0,88048.0,0.0001697]
[1742826932104,0.50064315,88049.0,88048.0,0.1409297]
[1742826932309,0.43659739,88049.0,88048.0,0.0001697]
[1742826932515,1.06840239,88049.0,88048.0,0.0001697]
[1742826933168,1.14600239,88049.0,88048.0,0.0001697]
[1742826933674,1.18014539,88049.0,88048.0,0.0001697]
[1742826933888,0.3,88048.0,88038.0,0.0001701]
[1742826934070,0.41425764,88039.0,88038.0,0.0001701]
[1742826934276,0.41425764,88039.0,88031.0,0.002]
[1742826934277,0.3,88038.0,88031.0,0.002]
[1742826934431,0.64045764,88032.0,88031.0,0.002]
[1742826934637,0.75471528,88032.0,88031.0,0.002]
[1742826934832,1.34760628,88032.0,88031.0,0.002]
[1742826935094,0.78272464,88032.0,88031.0,0.002]
[1742826935312,0.78284845,88032.0,88031.0,0.002]
[1742826935613,0.80902151,88032.0,88031.0,0.002]
[1742826936305,0.80555551,88032.0,88031.0,0.002]
[1742826936500,0.68987451,88032.0,88031.0,0.002]
[1742826936758,0.77043006,88032.0,88031.0,0.002]
[1742826937981,0.68987451,88032.0,88031.0,0.002]
[1742826938136,0.6814911,88032.0,88031.0,0.002]
[1742826938336,0.9399421,88032.0,88031.0,0.002]
[1742826938561,0.9276561,88032.0,88031.0,0.002]
[1742826939186,0.3814911,88032.0,88031.0,0.002]
[1742826939546,0.3814911,88032.0,88031.0,0.01150013]
[1742826939547,0.58695721,88032.0,88031.0,0.01150013]
[1742826939746,0.88695721,88032.0,88031.0,0.002]
[1742826939947,1.12550621,88032.0,88031.0,0.002]
[1742826940189,0.95818921,88032.0,88031.0,0.002]
[1742826940583,1.11261621,88032.0,88031.0,0.002]
[1742826940783,1.14676121,88032.0,88031.0,0.002]
[1742826941778,0.99233421,88032.0,88031.0,0.002]
[1742826941984,1.20062121,88032.0,88031.0,0.0021697]
[1742826942744,1.0819101,88032.0,88031.0,0.0021697]
[1742826943558,0.9541851,88032.0,88031.0,0.0021697]
[1742826943765,1.4544491,88032.0,88031.0,0.0021697]
[1742826943974,0.9541851,88032.0,88031.0,0.0021697]
[1742826944454,0.9428261,88032.0,88031.0,0.0021697]
[1742826944654,0.89089145,88032.0,88031.0,0.0021697]
[1742826944866,0.90225045,88032.0,88031.0,0.0021697]
[1742826945249,0.90225045,88032.0,88031.0,0.01172997]
[1742826945399,0.90225045,88032.0,88031.0,0.0021697]
[1742826946243,1.00183247,88032.0,88031.0,0.0021697]
[1742826946442,0.90225045,88032.0,88031.0,0.1425697]
[1742826947918,0.60225045,88032.0,88031.0,0.1425697]
[1742826948124,0.24944381,88032.0,88031.0,0.1425697]
[1742826948330,0.24944381,88032.0,88031.0,0.3697617]
[1742826948535,0.24944381,88032.0,88031.0,0.15212997]
[1742826948726,0.48799281,88032.0,88031.0,0.15212997]
[1742826948907,0.48799281,88032.0,88031.0,0.1425697]
[1742826949321,0.24944381,88032.0,88031.0,0.15212997]
[1742826949514,0.47663381,88032.0,88031.0,0.15212997]
[1742826950124,0.48799281,88032.0,88031.0,0.01172997]
[1742826950380,0.22632381,88032.0,88031.0,0.1422897]
[1742826950583,0.22632381,88032.0,88031.0,0.3694817]
[1742826950791,0.22632381,88032.0,88031.0,0.37904197]
[1742826951175,0.00012381,88032.0,88031.0,0.48094182]
[1742826951376,0.00012381,88032.0,88031.0,0.89873423]
[1742826952930,0.00012381,88032.0,88031.0,0.94853423]
[1742826953138,0.00012381,88032.0,88031.0,0.94821423]
[1742826954171,0.00012381,88032.0,88031.0,1.06247187]
[1742826955121,0.0482,88093.0,88065.0,0.227103]
[1742826955122,0.034128,88071.0,88065.0,0.227103]
[1742826955316,0.00046346,88068.0,88066.0,0.68941497]
[1742826955620,0.11425764,88067.0,88066.0,0.68941497]
[1742826955815,0.13720434,88067.0,88066.0,0.68949497]
[1742826956980,0.13720434,88067.0,88066.0,0.68937497]
[1742826960948,0.13720434,88067.0,88066.0,0.54989497]
[1742826961137,0.47667259,88067.0,88066.0,0.54989497]
[1742826961349,1.57107434,88067.0,88066.0,0.54989497]
[1742826962628,1.57107434,88067.0,88066.0,0.00929497]
[1742826962974,0.538479,88058.0,88057.0,0.13892]
[1742826963248,0.65273664,88058.0,88057.0,0.13892]
[1742826964781,0.3,88057.0,88050.0,0.54052]
[1742826965004,0.3,88055.0,88053.0,0.13864]
[1742826965187,0.11425764,88054.0,88053.0,0.13864]
[1742826965800,0.11425764,88054.0,88050.0,0.54052]
[1742826966006,0.11425764,88054.0,88051.0,0.13852]
[1742826966414,0.16461758,88054.0,88051.0,0.13852]
[1742826966634,0.3,88051.0,88050.0,0.54052]
[1742826966856,0.3,88051.0,88039.0,0.0001697]
[1742826966857,0.0802,88050.0,88039.0,0.0001697]
[1742826967086,0.41425764,88040.0,88039.0,0.0001697]
[1742826967513,0.58736464,88040.0,88039.0,0.0001697]
[1742826967923,0.54985464,88040.0,88039.0,0.0001697]
[1742826968128,0.51443864,88040.0,88039.0,0.0001697]
[1742826968546,0.41425764,88040.0,88039.0,0.0001697]
[1742826971754,0.41425764,88040.0,88039.0,0.00960418]
[1742826972233,0.45746203,88040.0,88039.0,0.00846276]
[1742826972495,0.41425764,88040.0,88039.0,0.00846276]
[1742826972745,0.3,88039.0,88035.0,0.13816]
[1742826973005,0.11425764,88038.0,88035.0,0.13816]
[1742826973237,0.11425764,88051.0,88046.0,0.227151]
[1742826973485,0.11425764,88051.0,88047.0,0.227151]
[1742826973717,0.11425764,88051.0,88048.0,0.13804]
[1742826973955,0.238505,88049.0,88048.0,0.13804]
[1742826974174,0.02274492,88052.0,88048.0,0.14648837]
[1742826974429,0.02274492,88052.0,88051.0,0.227141]
[1742826974905,0.02274492,88052.0,88051.0,0.00839172]
[1742826975129,0.02274492,88052.0,88051.0,0.23553272]
[1742826975372,0.02274492,88052.0,88051.0,0.00839172]
[1742826975840,0.02274492,88052.0,88051.0,0.23553272]
[1742826976558,0.02274492,88052.0,88051.0,0.31473272]
[1742826976790,0.22713,88056.0,88051.0,0.08759172]
[1742826977033,0.227124,88058.0,88054.0,0.22639757]
[1742826977275,0.02258454,88059.0,88058.0,0.227123]
[1742826977535,0.13684218,88059.0,88058.0,0.54056]
[1742826977773,0.13684218,88059.0,88058.0,0.68713997]
[1742826978025,0.00012404,88064.0,88062.0,0.227112]
[1742826978349,0.00012404,88064.0,88063.0,0.22711]
[1742826978443,0.00012404,88064.0,88063.0,0.23540225]
[1742826980365,0.00012404,88064.0,88063.0,0.2612981]
[1742826980780,0.00012404,88064.0,88063.0,0.3325431]
[1742826980991,0.00012404,88064.0,88063.0,0.00829225]
[1742826981415,0.22723404,88064.0,88058.0,0.58556]
[1742826981619,0.011355,88060.0,88059.0,0.13804]
[1742826981798,0.227115,88063.0,88059.0,0.365159]
[1742826981949,0.00012404,88064.0,88062.0,0.227112]
[1742826983232,0.00012404,88064.0,88061.0,0.227113]
[1742826983921,0.00012404,88064.0,88062.0,0.227112]
[1742826984907,0.00012404,88064.0,88058.0,0.54056]
[1742826984908,0.238476,88059.0,88058.0,0.54056]
[1742826985114,0.35273364,88059.0,88058.0,0.679]
[1742826985311,0.35273364,88059.0,88058.0,0.54056]
[1742826985571,0.35273364,88059.0,88058.0,0.67924]
[1742826985815,0.42179621,88059.0,88058.0,0.54056]
[1742826986016,0.94799621,88059.0,88058.0,0.54056]
[1742826986274,1.82197621,88059.0,88058.0,0.54056]
[1742826986484,1.51785621,88059.0,88058.0,0.54056]
[1742826986689,0.538494,88052.0,88051.0,0.0001697]
[1742826986894,0.76700928,88052.0,88051.0,0.0001697]
[1742826987104,0.11425764,88052.0,88051.0,0.0001697]
[1742826987303,0.238465,88063.0,88058.0,0.227121]
[1742826987515,0.12561264,88062.0,88059.0,0.1386]
[1742826987723,0.11425764,88063.0,88061.0,0.227115]
[1742826987930,0.00012404,88064.0,88063.0,0.22711]
[1742826988140,0.11438168,88064.0,88063.0,0.22711]
[1742826988347,0.1367406,88064.0,88063.0,0.23546911]
[1742826988882,0.13663659,88064.0,88063.0,0.23546911]
[1742826989283,2.003e-05,88064.0,88063.0,0.23546911]
[1742826989480,2.003e-05,88064.0,88063.0,0.24682411]
[1742826989714,2.003e-05,88064.0,88063.0,0.23546911]
[1742826992326,2.003e-05,88064.0,88063.0,0.26136496]
[1742826992739,0.00035943,88064.0,88063.0,0.26136496]
[1742826992946,0.00035943,88064.0,88063.0,0.75291716]
[1742826993097,0.00035943,88064.0,88063.0,0.80271716]
[1742826993565,0.00035943,88064.0,88063.0,0.9169748]
[1742826993971,0.00035943,88064.0,88063.0,0.80271716]
[1742826994769,4.3e-07,88064.0,88063.0,0.9219748]
[1742826996064,4.3e-07,88064.0,88063.0,0.9469748]
[1742826997664,0.0003394,88067.0,88066.0,0.036355]
[1742826997877,8e-07,88068.0,88067.0,0.28299385]
[1742826998098,8e-07,88068.0,88067.0,0.47255149]
[1742826998319,8e-07,88068.0,88067.0,0.5257323]
[1742826998532,8e-07,88068.0,88067.0,0.8257323]
[1742826998965,0.011348,88118.0,88067.0,0.8257323]
[1742826998966,0.4135394,88148.0,88104.0,0.01135]
[1742826999174,0.00012406,88114.0,88105.0,0.67824]
[1742826999383,0.02267431,88111.0,88108.0,0.226992]
[1742826999583,0.11425764,88110.0,88109.0,0.00791548]
[1742826999773,0.11425764,88110.0,88109.0,0.14575548]
[1742826999981,0.12560664,88110.0,88109.0,0.14575548]
[1742827000135,0.35259464,88110.0,88109.0,0.14575548]
[1742827000347,0.34124564,88110.0,88109.0,0.14575548]
[1742827000543,0.11425764,88110.0,88109.0,0.14575548]
[1742827000747,0.02267431,88111.0,88110.0,0.226988]
[1742827001026,0.02267431,88111.0,88110.0,0.23490194]
[1742827001980,0.02267431,88111.0,88110.0,0.24944279]
[1742827002379,0.02267431,88111.0,88110.0,0.26079179]
[1742827003011,0.02267431,88111.0,88110.0,0.24944279]
[1742827003227,0.02267431,88111.0,88110.0,0.00791394]
[1742827003449,0.37526695,88111.0,88110.0,0.00791394]
[1742827003654,0.37526695,88111.0,88110.0,0.14571394]
[1742827003877,0.37526695,88111.0,88110.0,0.1378]
[1742827004071,0.37526695,88111.0,88110.0,0.1456668]
[1742827004275,0.37526695,88111.0,88110.0,0.1378]
[1742827004535,0.37526695,88111.0,88110.0,0.14567706]
[1742827004718,0.37560635,88111.0,88110.0,0.14567706]
[1742827004924,0.37560635,88111.0,88110.0,0.1378]
[1742827005128,0.37560635,88111.0,88110.0,0.14567706]
[1742827005352,0.37560635,88111.0,88110.0,0.14547706]
[1742827005353,0.67560635,88111.0,88110.0,0.14547706]
[1742827005762,0.67560635,88111.0,88110.0,0.1376]
[1742827006173,0.64552994,88111.0,88110.0,0.1376]
[1742827007353,0.0003394,88111.0,88110.0,0.1376]
[1742827007554,0.0003394,88111.0,88110.0,0.3870094]
[1742827008385,0.0003394,88111.0,88110.0,0.80046117]
[1742827009299,0.0003394,88111.0,88110.0,0.81181017]
[1742827009850,8.6e-07,88127.0,88113.0,0.97043277]
[1742827010068,8.6e-07,88127.0,88126.0,0.33423485]
[1742827010288,8.6e-07,88127.0,88126.0,0.66481249]
[1742827010502,8.6e-07,88127.0,88126.0,0.66754295]
[1742827011339,8.6e-07,88127.0,88126.0,0.55328531]
[1742827011952,8.6e-07,88127.0,88126.0,0.66754295]
[1742827012579,8.6e-07,88127.0,88126.0,0.67254295]
[1742827013205,0.0003394,88153.0,88126.0,0.67254295]
[1742827013206,4e-07,88148.0,88147.0,0.363337]
[1742827013413,0.0004137,88148.0,88147.0,1.47656866]
[1742827014035,0.0004137,88148.0,88147.0,1.33908866]
[1742827014243,0.0004137,88148.0,88147.0,1.20264466]
[1742827014450,0.0004137,88148.0,88147.0,1.35146866]
[1742827015896,0.0004137,88148.0,88147.0,1.4657263]
[1742827016542,4e-07,88153.0,88152.0,0.25276485]
[1742827016747,0.00012434,88153.0,88152.0,0.36702249]
[1742827016955,0.00012434,88153.0,88152.0,0.45541945]
[1742827017336,0.0003394,88156.0,88155.0,0.25275685]
[1742827017567,0.0003394,88156.0,88155.0,0.36701449]
[1742827017779,0.0003394,88156.0,88155.0,0.51186166]
[1742827018959,0.0483,88207.0,88180.0,0.01134]
[1742827019125,0.011338,88193.0,88187.0,0.226789]
[1742827019325,0.011338,88193.0,88185.0,0.226795]
[1742827019326,0.34103564,88192.0,88188.0,0.226786]
[1742827019526,0.11425764,88192.0,88188.0,0.23407437]
[1742827019968,0.011339,88189.0,88188.0,0.00728837]
[1742827020172,0.238143,88182.0,88181.0,0.67736]
[1742827020379,0.35240064,88182.0,88181.0,0.68465915]
[1742827022654,0.48280064,88182.0,88181.0,0.68465915]
[1742827022862,0.12559764,88182.0,88181.0,0.68465915]
[1742827024501,0.42559764,88182.0,88181.0,0.54721915]
[1742827024710,1.07356164,88182.0,88181.0,0.00729915]
[1742827024910,1.30036464,88182.0,88181.0,0.00729915]
[1742827025116,0.538167,88173.0,88172.0,0.1374]